[Event "4th ChessMates Murmansk 2020"]
[Site "Murmansk"]
[Date "2020.03.13"]
[Round "2.19"]
[White "Rombalskiy, Ivan"]
[Black "Yatchenko, Leonid"]
[Result "0-1"]
[ECO "B73"]
[WhiteElo "1298"]
[BlackElo "1705"]
[Annotator "NA"]
[PlyCount "66"]
[EventDate "2020.03.13"]
[EventType "team-tourn"]
[EventCountry "RUS"]
[SourceTitle "playchess.com"]
[Source "ChessBase"]
[SourceQuality "1"]
[TimeControl "5400+30"]

1. e4 {[%emt 0:00:00]} c5 {[%emt 0:00:00]} 2. Nf3 {[%emt 0:00:00]} d6 {[%emt 0:00:00]} 3. d4 {[%emt 0:00:11]} cxd4 {[%emt 0:00:02]} 4. Nxd4 {[%emt 0:00:04]} Nf6 {[%emt 0:00:08]} 5. Nc3 {[%emt 0:00:07]} g6 {[%emt 0:00:07]} 6. Be3 {[%emt 0:00:12]} Bg7 {[%emt 0:00:06]} 7. Be2 {[%emt 0:00:41]} Nc6 {[%emt 0:00:05]} 8. O-O {[%emt 0:00:57]} O-O {[%emt 0:00:19]} 9. Qd2 {[%emt 0:00:33]} d5 {[%emt 0:00:20]} 10. Nxc6 {[%emt 0:02:55]} bxc6 {[%emt 0:00:09]} 11. Rad1 {[%emt 0:02:23]} Bb7 {[%emt 0:00:26]} 12. Bf3 {[%emt 0:01:57]} e6 {[%emt 0:03:32]} 13. Bg5 {[%emt 0:04:23]} Qc7 {[%emt 0:01:43]} 14. Rfe1 {[%emt 0:02:53]} Nd7 {[%emt 0:00:47]} 15. exd5 {[%emt 0:04:38]} cxd5 {[%emt 0:00:09]} 16. Bf4 {[%emt 0:01:22]} Qb6 {[%emt 0:04:34]} 17. Rb1 {[%emt 0:06:59]} Rac8 {[%emt 0:01:16]} 18. Red1 {[%emt 0:02:18]} Ne5 {[%emt 0:05:54]} 19. Be3 {[%emt 0:04:01]} Nxf3+ {[%emt 0:00:14]} 20. gxf3 {[%emt 0:00:10]} Qa6 {[%emt 0:00:44]} 21. f4 {[%emt 0:03:30]} Rfd8 {[%emt 0:00:29]} 22. Ne2 d4 23. Nxd4 {[%emt 0:07:13]} Bxd4 {[%emt 0:20:12]} 24. Bxd4 {[%emt 0:00:10]} Qc6 {[%emt 0:00:02]} 25. f3 {[%emt 0:02:30]} Qxf3 {[%emt 0:00:07]} 26. c3 {[%emt 0:00:55]} Qh1+ {[%emt 0:01:01]} 27. Kf2 {[%emt 0:00:12]} Qxh2+ {[%emt 0:00:11]} 28. Ke1 {[%emt 0:02:00]} Qh1+ {[%emt 0:01:28]} 29. Kf2 {[%emt 0:00:51]} Qf3+ {[%emt 0:00:22]} 30. Ke1 {[%emt 0:00:21]} Qh1+ {[%emt 0:04:38]} 31. Kf2 {[%emt 0:00:25]} Qh4+ {[%emt 0:00:08]} 32. Kg1 {[%emt 0:02:00]} Qg3+ {[%emt 0:00:11]} 33. Kf1 {[%emt 0:01:34]} Ba6+ {[%emt 0:00:08]} 0-1

[Event "4th ChessMates Murmansk 2020"]
[Site "Murmansk"]
[Date "2020.03.13"]
[Round "2.20"]
[White "Zaytsev, Egor"]
[Black "Ivashevskiy, Artem"]
[Result "0-1"]
[ECO "B13"]
[WhiteElo "1871"]
[BlackElo "1233"]
[Annotator "NA RC"]
[PlyCount "98"]
[EventDate "2020.03.13"]
[EventType "team-tourn"]
[EventCountry "RUS"]
[SourceTitle "playchess.com"]
[Source "ChessBase"]
[SourceQuality "1"]
[TimeControl "5400+30"]

1. e4 {[%emt 0:00:00]} c6 {[%emt 0:00:00]} 2. d4 {[%emt 0:00:00]} d5 {[%emt 0:00:00]} 3. exd5 {[%emt 0:00:03]} cxd5 {[%emt 0:00:00]} 4. c4 {[%emt 0:00:05]} Nf6 {[%emt 0:00:00]} 5. Nc3 {[%emt 0:00:06]} Nc6 {[%emt 0:00:04]} 6. c5 {[%emt 0:02:50]} g6 {[%emt 0:00:20] B13: Caro-Kann: Exchange Variation and Panov-Botvinnik Attack.} 7. h3 {[%emt 0:00:27]} Bg7 {[%emt 0:00:12]} 8. Nf3 {[%emt 0:00:05]} O-O {[%emt 0:01:27]} 9. Bb5 {[%emt 0:02:36]} Ne4 {[%emt 0:03:47]} 10. O-O {[%emt 0:01:29]} Nxc3 {[%emt 0:01:32]} 11. bxc3 {[%emt 0:00:09]} Qa5 {[%emt 0:01:36]} 12. Qb3 {[%emt 0:04:38] [#]} Rd8 $146 {[%emt 0:04:37]} ({Predecessor:} 12... a6 13. Bxc6 bxc6 14. Bf4 Bf5 15. Rfe1 Rfe8 16. Ne5 Bxe5 17. Bxe5 Qb5 18. Qa3 a5 {½-½ (45) De Araujo Oliveira,R (2129)-Simao,D (1892) Natal 2013}) 13. Re1 {[%emt 0:01:14]} Bxd4 {[%emt 0:11:24]} 14. Bxc6 {[%emt 0:16:08]} Bxc3 {[%emt 0:00:09]} 15. Bxd5 {[%emt 0:00:12]} e6 {[%emt 0:00:10]} 16. Bc4 {[%emt 0:00:56]} Bxa1 {[%emt 0:00:31]} 17. Bg5 {[%emt 0:00:53]} Bg7 {[%emt 0:21:03]} 18. Bxd8 {[%emt 0:00:40]} Qxd8 {[%emt 0:00:09]} 19. Rd1 {[%emt 0:06:06]} Qc7 {[%emt 0:01:03]} 20. Qb5 {[%emt 0:06:33]} Bf8 {[%emt 0:02:05]} 21. Ng5 {[%emt 0:11:57]} Qxc5 {[%emt 0:01:47]} 22. Qxc5 {[%emt 0:00:45]} Bxc5 {[%emt 0:00:16]} 23. Rd8+ {[%emt 0:00:06]} Kg7 {[%emt 0:01:00]} 24. Nxe6+ {[%emt 0:12:19]} fxe6 {[%emt 0:00:19]} 25. Bxe6 {[%emt 0:00:06]} Bxe6 {[%emt 0:00:04]} 26. Rxa8 {[%emt 0:00:12]} Bxa2 {[%emt 0:00:03]} 27. Rc8 {[%emt 0:02:29]} Bb6 {[%emt 0:01:16]} 28. g4 {[%emt 0:01:16]} a5 {[%emt 0:02:22]} 29. Re8 {[%emt 0:02:21]} Bc5 {[%emt 0:01:04]} 30. Ra8 {[%emt 0:01:47]} b6 {[%emt 0:00:34]} 31. Ra7+ {[%emt 0:00:06]} Bf7 {[%emt 0:00:40]} 32. g5 {[%emt 0:00:42]} Kf8 {[%emt 0:00:45]} 33. Kg2 {[%emt 0:00:31]} Be7 {[%emt 0:01:46]} 34. Ra6 {[%emt 0:02:51]} Bd8 {[%emt 0:02:19]} 35. Kg3 {[%emt 0:00:29]} b5 {[%emt 0:00:37]} 36. Ra8 {[%emt 0:00:22]} Ke8 {[%emt 0:01:31]} 37. Kf4 {[%emt 0:01:37]} b4 {[%emt 0:00:25]} 38. Ke5 {[%emt 0:00:21]} Kd7 {[%emt 0:06:26]} 39. Ra7+ {[%emt 0:00:19]} Bc7+ {[%emt 0:00:08]} 40. Kf6 {[%emt 0:00:15]} Bd5 {[%emt 0:00:10]} 41. Kg7 {[%emt 0:01:00]} b3 {[%emt 0:00:10]} 42. f4 {[%emt 0:00:28]} b2 {[%emt 0:00:13]} 43. f5 {[%emt 0:00:23]} gxf5 {[%emt 0:00:22]} 44. Kxh7 {[%emt 0:00:07]} b1=Q {[%emt 0:00:11]} 45. g6 {[%emt 0:00:14]} f4 {[%emt 0:00:10]} 46. h4 {[%emt 0:00:10]} f3 {[%emt 0:00:14]} 47. h5 {[%emt 0:01:04]} f2 {[%emt 0:00:15]} 48. Kh8 {[%emt 0:00:23]} f1=Q {[%emt 0:00:54]} 49. g7 {[%emt 0:00:07]} Qf6 {[%emt 0:00:09]} 0-1

[Event "4th ChessMates Murmansk 2020"]
[Site "Murmansk"]
[Date "2020.03.13"]
[Round "2.23"]
[White "Rachid, Alexandre"]
[Black "Putar, Leon"]
[Result "1-0"]
[ECO "C15"]
[WhiteElo "2099"]
[BlackElo "1885"]
[Annotator "ChessBase"]
[PlyCount "93"]
[EventDate "2020.03.13"]
[EventType "team-tourn"]
[EventCountry "RUS"]
[SourceTitle "playchess.com"]
[Source "ChessBase"]
[SourceQuality "1"]
[TimeControl "5400+30"]

1. e4 {[%emt 0:01:52]} e6 {[%emt 0:00:00]} 2. d4 {[%emt 0:00:05]} d5 {[%emt 0:00:00]} 3. Nc3 {[%emt 0:00:04]} Bb4 {[%emt 0:00:28]} 4. a3 {[%emt 0:00:31]} Bxc3+ {[%emt 0:00:53]} 5. bxc3 {[%emt 0:00:02]} dxe4 {[%emt 0:00:27]} 6. Qg4 {[%emt 0:00:05]} Nf6 {[%emt 0:00:41]} 7. Qxg7 {[%emt 0:00:07]} Rg8 {[%emt 0:00:31]} 8. Qh6 {[%emt 0:00:02]} Rg6 {[%emt 0:00:46]} 9. Qe3 {[%emt 0:02:46]} c5 {[%emt 0:00:56]} 10. Ne2 {[%emt 0:00:42]} Nc6 {[%emt 0:02:09]} 11. Bb2 {[%emt 0:08:40]} Ne7 {[%emt 0:12:02]} 12. Ng3 {[%emt 0:01:55]} Ned5 {[%emt 0:02:36]} 13. Qd2 {[%emt 0:01:07]} Qc7 {[%emt 0:06:49]} 14. Rd1 {[%emt 0:10:37]} e3 {[%emt 0:01:00]} 15. Bb5+ {[%emt 0:09:02]} Bd7 {[%emt 0:03:30]} 16. Bxd7+ {[%emt 0:00:30]} Kxd7 {[%emt 0:00:07]} 17. Qe2 {[%emt 0:00:58]} Ng4 {[%emt 0:02:19]} 18. fxe3 {[%emt 0:11:07]} Ngxe3 {[%emt 0:01:35]} 19. Rd2 {[%emt 0:11:25]} c4 {[%emt 0:05:10]} 20. Qf3 {[%emt 0:05:21]} Rf6 {[%emt 0:02:21]} 21. Qe4 {[%emt 0:01:52]} Rg8 {[%emt 0:01:50]} 22. Nf1 {[%emt 0:03:33]} Rf4 {[%emt 0:01:27]} 23. Qxh7 {[%emt 0:01:13]} Nxg2+ {[%emt 0:03:13]} 24. Kd1 {[%emt 0:01:07]} Rg6 {[%emt 0:04:09]} 25. Kc1 {[%emt 0:05:52]} Kc6 {[%emt 0:00:54]} 26. Qh8 {[%emt 0:04:43]} Rgf6 {[%emt 0:06:18]} 27. Ng3 {[%emt 0:01:30]} Nge3 {[%emt 0:00:18]} 28. Qe8+ {[%emt 0:03:35]} Kb6 {[%emt 0:00:53]} 29. Kb1 {[%emt 0:04:37]} a6 {[%emt 0:01:14]} 30. Re1 {[%emt 0:01:43]} Ka7 {[%emt 0:03:03]} 31. Rde2 {[%emt 0:01:10]} Rf3 {[%emt 0:02:26]} 32. Ne4 {[%emt 0:00:09]} Qb6 {[%emt 0:06:17]} 33. Ka2 {[%emt 0:03:35]} R6f4 {[%emt 0:01:34]} 34. Nc5 {[%emt 0:01:42]} Nf6 {[%emt 0:06:44]} 35. Qc8 {[%emt 0:00:34]} Ned5 {[%emt 0:00:29]} 36. Rb1 {[%emt 0:01:04]} Rxc3 {[%emt 0:02:03]} 37. Na4 {[%emt 0:02:12]} Qa5 {[%emt 0:04:24]} 38. Bxc3 {[%emt 0:00:15]} Nxc3+ {[%emt 0:00:04]} 39. Nxc3 {[%emt 0:00:09]} b5 {[%emt 0:00:31]} 40. Qc5+ {[%emt 0:00:39]} Ka8 {[%emt 0:00:20]} 41. Qf8+ {[%emt 0:00:15]} Ka7 {[%emt 0:00:37]} 42. Qxf7+ {[%emt 0:00:06]} Ka8 {[%emt 0:00:29]} 43. Rxe6 {[%emt 0:00:34]} Rf2 {[%emt 0:02:36]} 44. Qf8+ {[%emt 0:00:11]} Kb7 {[%emt 0:00:06]} 45. Re7+ {[%emt 0:00:10]} Kc6 {[%emt 0:01:40]} 46. Qc8+ {[%emt 0:00:07]} Kd6 {[%emt 0:00:07]} 47. Qe6# 1-0

[Event "4th ChessMates Murmansk 2020"]
[Site "Murmansk"]
[Date "2020.03.13"]
[Round "2.26"]
[White "Solovyev, Vladislav B."]
[Black "Kien, Clovis"]
[Result "1-0"]
[ECO "B20"]
[WhiteElo "1410"]
[BlackElo "1765"]
[Annotator "NA"]
[PlyCount "61"]
[EventDate "2020.03.13"]
[EventType "team-tourn"]
[EventCountry "RUS"]
[SourceTitle "playchess.com"]
[Source "ChessBase"]
[SourceQuality "1"]
[TimeControl "5400+30"]

1. e4 {[%emt 0:00:00]} c5 {[%emt 0:02:13]} 2. g3 {[%emt 0:00:00]} Nc6 {[%emt 0:01:27]} 3. Bg2 {[%emt 0:00:00]} d6 {[%emt 0:01:25]} 4. d3 {[%emt 0:00:09]} e6 {[%emt 0:01:13]} 5. f4 {[%emt 0:00:07]} g6 {[%emt 0:00:27]} 6. c3 {[%emt 0:00:16]} Bg7 {[%emt 0:00:12]} 7. Nf3 {[%emt 0:00:10]} Nge7 {[%emt 0:05:06]} 8. Be3 {[%emt 0:00:53]} f5 {[%emt 0:03:25]} 9. Nbd2 {[%emt 0:00:52]} O-O {[%emt 0:01:26]} 10. O-O {[%emt 0:00:07]} b6 {[%emt 0:06:32]} 11. Re1 {[%emt 0:04:23]} Ba6 {[%emt 0:06:43]} 12. Ng5 {[%emt 0:00:35]} Qd7 {[%emt 0:01:03]} 13. exf5 {[%emt 0:01:02]} Nxf5 {[%emt 0:10:47]} 14. Nxe6 {[%emt 0:02:24]} Qxe6 {[%emt 0:18:33]} 15. Bxc6 {[%emt 0:00:08]} Rac8 {[%emt 0:04:59]} 16. Qf3 {[%emt 0:03:41]} Ne7 {[%emt 0:14:30]} 17. Bb7 {[%emt 0:00:30]} Bxb7 {[%emt 0:00:23]} 18. Qxb7 {[%emt 0:00:05]} Qf6 {[%emt 0:05:31]} 19. Ne4 {[%emt 0:02:07]} Qe6 {[%emt 0:00:44]} 20. Ng5 {[%emt 0:00:10]} Qf6 {[%emt 0:00:31]} 21. Bf2 {[%emt 0:00:13]} Nf5 {[%emt 0:00:45]} 22. Re6 {[%emt 0:00:54]} Qd8 {[%emt 0:01:43]} 23. g4 {[%emt 0:02:34]} Nh6 {[%emt 0:00:58]} 24. Qd5 {[%emt 0:00:23]} Kh8 {[%emt 0:00:31]} 25. Rxd6 Qe8 {[%emt 0:03:11]} 26. Re1 {[%emt 0:00:34]} Qb5 {[%emt 0:00:26]} 27. Re7 {[%emt 0:01:33]} Rxf4 {[%emt 0:02:03]} 28. Rxg7 {[%emt 0:01:11]} Rxg4+ {[%emt 0:03:44]} 29. Bg3 {[%emt 0:00:27]} Kxg7 {[%emt 0:01:07]} 30. Rd7+ {[%emt 0:00:23]} Kf8 {[%emt 0:00:57]} 31. Nxh7+ {[%emt 0:00:23]} 1-0

[Event "4th ChessMates Murmansk 2020"]
[Site "Murmansk"]
[Date "2020.03.13"]
[Round "2.27"]
[White "Gherghinoiu, Lucas"]
[Black "Iarovoi, Dmitrii"]
[Result "1-0"]
[ECO "C02"]
[WhiteElo "2109"]
[BlackElo "1346"]
[Annotator "ChessBase"]
[PlyCount "75"]
[EventDate "2020.03.13"]
[EventType "team-tourn"]
[EventCountry "RUS"]
[SourceTitle "playchess.com"]
[Source "ChessBase"]
[SourceQuality "1"]
[TimeControl "5400+30"]

1. e4 {[%emt 0:00:00]} e6 {[%emt 0:00:00]} 2. d4 {[%emt 0:00:00]} d5 {[%emt 0:00:04]} 3. e5 {[%emt 0:00:00]} c5 {[%emt 0:00:05]} 4. c3 {[%emt 0:00:00]} Qb6 {[%emt 0:00:08]} 5. Nf3 {[%emt 0:00:24]} Nc6 {[%emt 0:00:06]} 6. a3 {[%emt 0:00:23]} Nge7 {[%emt 0:00:26]} 7. b4 {[%emt 0:00:38]} cxd4 {[%emt 0:00:21]} 8. cxd4 {[%emt 0:00:10]} Nf5 {[%emt 0:00:13]} 9. Be3 {[%emt 0:00:56]} Bd7 {[%emt 0:01:48]} 10. Bd3 {[%emt 0:01:45]} Nxe3 {[%emt 0:00:27]} 11. fxe3 {[%emt 0:00:08]} Rc8 {[%emt 0:00:58]} 12. O-O {[%emt 0:01:40]} h6 {[%emt 0:01:20]} 13. Nbd2 {[%emt 0:04:43]} Be7 {[%emt 0:01:00]} 14. Nb3 {[%emt 0:01:51]} O-O {[%emt 0:01:18]} 15. Ra2 {[%emt 0:05:09]} a5 {[%emt 0:01:40]} 16. b5 {[%emt 0:04:57]} Nb8 {[%emt 0:00:15]} 17. a4 {[%emt 0:00:59]} Rc3 {[%emt 0:01:20]} 18. Nc1 {[%emt 0:02:51]} Ra3 {[%emt 0:03:10]} 19. Rxa3 {[%emt 0:05:01]} Bxa3 {[%emt 0:00:02]} 20. Ne2 {[%emt 0:01:14]} Rc8 {[%emt 0:04:01]} 21. Bb1 {[%emt 0:04:35]} Bf8 {[%emt 0:05:46]} 22. h4 {[%emt 0:06:38]} h5 {[%emt 0:04:15]} 23. Qd3 {[%emt 0:04:42]} g6 {[%emt 0:00:06]} 24. Ng5 {[%emt 0:02:46]} Be8 {[%emt 0:00:06]} 25. Nf4 {[%emt 0:02:25]} Bg7 {[%emt 0:04:45]} 26. g4 {[%emt 0:06:03]} Bh6 {[%emt 0:04:01]} 27. gxh5 {[%emt 0:13:51]} Bxg5 {[%emt 0:00:18]} 28. hxg5 {[%emt 0:01:29]} Rc7 {[%emt 0:04:43]} 29. hxg6 {[%emt 0:01:09]} fxg6 {[%emt 0:00:02]} 30. Nxg6 {[%emt 0:00:40]} Rf7 {[%emt 0:01:43]} 31. Rxf7 Bxf7 {[%emt 0:00:41]} 32. Nf4 {[%emt 0:05:15]} Qd8 {[%emt 0:02:19]} 33. Qh7+ {[%emt 0:00:29]} Kf8 {[%emt 0:00:01]} 34. Qh6+ {[%emt 0:05:45]} Ke7 {[%emt 0:00:59]} 35. g6 {[%emt 0:00:41]} Qg8 {[%emt 0:01:10]} 36. Kf2 {[%emt 0:00:38]} Be8 {[%emt 0:00:15]} 37. Qh7+ {[%emt 0:00:34]} Kf8 {[%emt 0:00:08]} 38. g7+ {[%emt 0:01:14]} 1-0

[Event "4th ChessMates Murmansk 2020"]
[Site "Murmansk"]
[Date "2020.03.13"]
[Round "2.28"]
[White "Pereverzev, Valerii"]
[Black "Fougerat, Emma"]
[Result "1/2-1/2"]
[ECO "B76"]
[WhiteElo "1379"]
[BlackElo "1668"]
[Annotator "NA RC"]
[PlyCount "55"]
[EventDate "2020.03.13"]
[EventType "team-tourn"]
[EventCountry "RUS"]
[SourceTitle "playchess.com"]
[Source "ChessBase"]
[SourceQuality "1"]
[TimeControl "5400+30"]

1. e4 {[%emt 0:00:00]} c5 {[%emt 0:00:00]} 2. Nf3 {[%emt 0:00:00]} d6 {[%emt 0:00:00]} 3. d4 {[%emt 0:00:00]} cxd4 {[%emt 0:00:00]} 4. Nxd4 {[%emt 0:00:01]} Nf6 {[%emt 0:00:00]} 5. Nc3 {[%emt 0:00:07]} g6 {[%emt 0:00:16]} 6. Be3 {[%emt 0:01:00]} Bg7 {[%emt 0:00:05]} 7. f3 {[%emt 0:00:06]} O-O {[%emt 0:00:06]} 8. Bc4 {[%emt 0:00:34]} a6 {[%emt 0:00:53]} 9. Bb3 {[%emt 0:00:09]} Nc6 {[%emt 0:02:30]} 10. Qd2 {[%emt 0:00:13]} Bd7 {[%emt 0:07:36]} 11. O-O-O {[%emt 0:00:24]} b5 {[%emt 0:07:09]} 12. Nxc6 {[%emt 0:07:49]} Bxc6 {[%emt 0:00:13]} 13. Bh6 {[%emt 0:00:32]} a5 {[%emt 0:09:48]} 14. Bxg7 {[%emt 0:00:11]} Kxg7 {[%emt 0:00:04]} 15. Bd5 {[%emt 0:01:36]} Bxd5 {[%emt 0:07:53]} 16. Nxd5 {[%emt 0:00:22]} Nxd5 {[%emt 0:07:15]} 17. exd5 {[%emt 0:00:12]} Qc7 {[%emt 0:01:15]} 18. h4 {[%emt 0:03:57]} h5 {[%emt 0:02:45]} 19. g4 {[%emt 0:00:54]} Rh8 {[%emt 0:00:45]} 20. Rde1 {[%emt 0:00:57]} Rac8 {[%emt 0:01:42]} 21. Kb1 {[%emt 0:00:21]} b4 {[%emt 0:01:09]} 22. g5 {[%emt 0:00:56]} Rhe8 {[%emt 0:06:54]} 23. Rh2 {[%emt 0:02:52]} Qc4 {[%emt 0:04:56]} 24. Rd1 {[%emt 0:31:20]} Rc5 {[%emt 0:06:55]} 25. f4 {[%emt 0:09:42]} Qe4 {[%emt 0:06:24]} 26. Qd4+ {[%emt 0:02:02]} Qxd4 {[%emt 0:00:16]} 27. Rxd4 {[%emt 0:00:07]} Rec8 {[%emt 0:01:04]} 28. Rhd2 {[%emt 0:09:01]} 1/2-1/2

[Event "4th ChessMates Murmansk 2020"]
[Site "Murmansk"]
[Date "2020.03.13"]
[Round "2.30"]
[White "Bueckert, Lucy"]
[Black "Ider, Bayar"]
[Result "0-1"]
[ECO "A03"]
[WhiteElo "1302"]
[BlackElo "1730"]
[Annotator "NA"]
[PlyCount "34"]
[EventDate "2020.03.13"]
[EventType "team-tourn"]
[EventCountry "RUS"]
[SourceTitle "playchess.com"]
[Source "ChessBase"]
[SourceQuality "1"]
[TimeControl "5400+30"]

1. f4 {[%emt 0:00:00]} d5 {[%emt 0:00:00]} 2. Nf3 {[%emt 0:00:00]} Nf6 {[%emt 0:00:00]} 3. e3 {[%emt 0:00:08]} e6 {[%emt 0:00:11]} 4. b3 {[%emt 0:00:12]} Bd6 {[%emt 0:00:21]} 5. Bb2 {[%emt 0:00:24]} Nbd7 {[%emt 0:00:45]} 6. Be2 {[%emt 0:00:20]} c5 {[%emt 0:01:19]} 7. d3 {[%emt 0:00:16]} Qc7 {[%emt 0:00:13]} 8. Nbd2 {[%emt 0:01:30]} e5 {[%emt 0:01:19]} 9. fxe5 {[%emt 0:01:55]} Nxe5 {[%emt 0:00:04]} 10. O-O {[%emt 0:00:45]} Neg4 {[%emt 0:00:18]} 11. Qe1 {[%emt 0:01:21]} Bxh2+ {[%emt 0:00:32]} 12. Kh1 {[%emt 0:03:56]} Bg3 {[%emt 0:00:11]} 13. Qc1 {[%emt 0:00:17]} Nf2+ {[%emt 0:00:38]} 14. Kg1 {[%emt 0:01:54]} N6g4 {[%emt 0:00:16]} 15. Rxf2 {[%emt 0:00:47]} Bxf2+ 16. Kf1 {[%emt 0:00:16]} Qg3 {[%emt 0:00:41]} 17. Bxg7 {[%emt 0:05:29]} Nxe3# {[%emt 0:00:06]} 0-1

[Event "4th ChessMates Murmansk 2020"]
[Site "Murmansk"]
[Date "2020.03.14"]
[Round "3.2"]
[White "Vaino, Nikita"]
[Black "Goss, Alex"]
[Result "0-1"]
[ECO "A10"]
[WhiteElo "1788"]
[BlackElo "1811"]
[Annotator "NA RC"]
[PlyCount "34"]
[EventDate "2020.03.13"]
[EventType "team-tourn"]
[EventCountry "RUS"]
[SourceTitle "playchess.com"]
[Source "ChessBase"]
[SourceQuality "1"]
[TimeControl "5400+30"]

{[%evp 9,34,-2,32767,32767,32767,0,0,0,0,-5,1,-4,0,0,0,-116,-117,-313,-295,-410,-414,-472,-497,-915,-600,-1282,-1519]} 1. c4 {[%emt 0:00:00]} f5 {[%emt 0:00:00]} 2. Nc3 {[%emt 0:00:00]} Nf6 {[%emt 0:00:00]} 3. d3 {[%emt 0:00:00]} e5 {[%emt 0:00:00]} 4. g3 {[%emt 0:00:00]} Bb4 {[%emt 0:00:07]} 5. Bg2 {[%emt 0:00:35]} O-O {[%emt 0:00:08]} 6. Qb3 {[%emt 0:02:52]} c5 {[%emt 0:01:33]} 7. Nf3 {[%emt 0:09:03]} Nc6 {[%emt 0:00:39]} 8. O-O {[%emt 0:01:57]} Bxc3 {[%emt 0:00:13]} 9. Qxc3 {[%emt 0:01:09]} d6 {[%emt 0:00:14]} 10. a3 {[%emt 0:00:40]} a5 {[%emt 0:01:24]} 11. e3 {[%emt 0:05:20]} Qe8 {[%emt 0:01:05]} 12. Rd1 {[%emt 0:04:07]} (12. b3 $11) 12... Qh5 {[%emt 0:01:17]} 13. Qd2 $2 {[%emt 0:11:13] [#]} (13. Rf1 $17 {is a better defense.}) 13... f4 $1 {[%emt 0:02:42]} 14. Nh4 {[%emt 0:10:10]} g5 {[%emt 0:08:42]} 15. Bxc6 {[%emt 0:02:22]} bxc6 {[%emt 0:01:36]} 16. Ng2 {[%emt 0:00:14]} (16. exf4 $142 gxh4 17. Re1) 16... Qh3 {[%emt 0:00:51]} 17. exf4 {[%emt 0:00:52]} Ng4 $19 {[%emt 0:00:30]} 0-1

[Event "4th ChessMates Murmansk 2020"]
[Site "Murmansk"]
[Date "2020.03.14"]
[Round "3.4"]
[White "Nikitin, Arseni EST"]
[Black "Timoshenko, Fedor"]
[Result "1-0"]
[ECO "C26"]
[WhiteElo "1680"]
[BlackElo "1621"]
[Annotator "NA RC"]
[PlyCount "39"]
[EventDate "2020.03.13"]
[EventType "team-tourn"]
[EventCountry "RUS"]
[SourceTitle "playchess.com"]
[Source "ChessBase"]
[SourceQuality "1"]
[TimeControl "5400+30"]

1. e4 {[%emt 0:00:00]} e5 {[%emt 0:03:40]} 2. Nc3 {[%emt 0:00:23]} Nf6 {[%emt 0:00:23]} 3. f4 {[%emt 0:01:14]} d6 {[%emt 0:02:20]} 4. Nf3 {[%emt 0:00:14]} Nc6 {[%emt 0:00:49]} 5. d3 {[%emt 0:00:22]} Bg4 {[%emt 0:02:16]} 6. h3 {[%emt 0:00:48]} Bxf3 {[%emt 0:00:28]} 7. Qxf3 {[%emt 0:00:06]} Qd7 {[%emt 0:01:06]} 8. g4 {[%emt 0:02:47]} Nd4 {[%emt 0:02:15]} 9. Qf2 {[%emt 0:00:13]} Be7 {[%emt 0:05:18]} 10. Be3 {[%emt 0:01:05]} c5 {[%emt 0:02:37]} 11. O-O-O {[%emt 0:08:55]} O-O-O {[%emt 0:00:34]} 12. g5 {[%emt 0:00:54]} Ng8 {[%emt 0:00:35]} 13. h4 {[%emt 0:00:24]} h6 {[%emt 0:00:21]} 14. Bh3 {[%emt 0:00:06]} Ne6 {[%emt 0:05:05]} 15. f5 {[%emt 0:00:10]} Nxg5 {[%emt 0:00:55]} 16. hxg5 {[%emt 0:00:19]} Bxg5 {[%emt 0:00:41]} 17. f6 {[%emt 0:00:12]} Bxe3+ {[%emt 0:05:08]} 18. Qxe3 {[%emt 0:00:08]} Nxf6 {[%emt 0:00:04]} 19. Bxd7+ {[%emt 0:00:06]} Rxd7 {[%emt 0:00:12]} 20. Rdg1 {[%emt 0:00:10]} 1-0

[Event "4th ChessMates Murmansk 2020"]
[Site "Murmansk"]
[Date "2020.03.14"]
[Round "3.5"]
[White "Putar, Lara"]
[Black "Rikas, Artur"]
[Result "1-0"]
[ECO "A68"]
[WhiteElo "1799"]
[BlackElo "1580"]
[Annotator "NA RC"]
[PlyCount "49"]
[EventDate "2020.03.13"]
[EventType "team-tourn"]
[EventCountry "RUS"]
[SourceTitle "playchess.com"]
[Source "ChessBase"]
[SourceQuality "1"]
[TimeControl "5400+30"]

1. d4 {[%emt 0:00:00]} Nf6 {[%emt 0:00:40]} 2. c4 {[%emt 0:00:00]} c5 {[%emt 0:00:03]} 3. d5 {[%emt 0:00:00]} e6 {[%emt 0:00:05]} 4. Nc3 {[%emt 0:02:52]} exd5 {[%emt 0:00:06]} 5. cxd5 {[%emt 0:00:20]} d6 {[%emt 0:00:05]} 6. e4 {[%emt 0:01:03]} g6 {[%emt 0:00:05]} 7. f4 {[%emt 0:01:11]} Bg7 {[%emt 0:00:14]} 8. Nf3 {[%emt 0:01:09]} O-O {[%emt 0:00:12]} 9. Be2 {[%emt 0:02:12]} a6 {[%emt 0:00:12]} 10. a4 {[%emt 0:00:09]} Re8 {[%emt 0:00:07]} 11. Qc2 {[%emt 0:02:28]} Nbd7 {[%emt 0:00:13]} 12. O-O {[%emt 0:01:43]} Rb8 {[%emt 0:00:06]} 13. Bd2 {[%emt 0:02:02]} c4 {[%emt 0:13:32]} 14. Bxc4 {[%emt 0:01:40]} Nc5 {[%emt 0:11:07]} 15. e5 {[%emt 0:10:54]} Bf5 {[%emt 0:03:56]} 16. Qd1 {[%emt 0:02:20]} Nfe4 {[%emt 0:08:43]} 17. Be3 {[%emt 0:13:20]} Nxc3 {[%emt 0:04:31]} 18. bxc3 {[%emt 0:00:15]} b5 {[%emt 0:01:22]} 19. axb5 {[%emt 0:01:56]} axb5 {[%emt 0:00:27]} 20. Bxc5 {[%emt 0:04:38]} dxc5 {[%emt 0:00:44]} 21. Ba2 {[%emt 0:07:44]} Qb6 {[%emt 0:12:59]} 22. d6 {[%emt 0:02:48]} Ra8 {[%emt 0:08:53]} 23. Bxf7+ {[%emt 0:03:02]} Kxf7 {[%emt 0:00:35]} 24. Rxa8 {[%emt 0:00:07]} c4+ {[%emt 0:00:35]} 25. Kh1 {[%emt 0:00:20]} 1-0